fUSD/lending_fUSD_20260202
["ID","MTS","AMOUNT","RATE_DAILY","PERIOD"]
[404239967,1769993446151,-1314.92961221,0.00016438,2]
[404239968,1769993446165,-1314.92961221,0.00016438,2]
[404239969,1769993446178,-1314.92961221,0.00016438,2]
[404239970,1769993446190,-1314.92961221,0.00016438,2]
[404239971,1769993446200,-1314.92961221,0.00016438,2]
[404239972,1769993446210,-1314.92961221,0.00016438,2]
[404239973,1769993446220,-1314.92961221,0.00016438,2]
[404239974,1769993446231,-1314.92961221,0.00016438,2]
[404239975,1769993446241,-1314.92961221,0.00016438,2]
[404239976,1769993446251,-1314.92961221,0.00016438,2]
[404239977,1769993446261,-1314.92961221,0.00016438,2]
[404239978,1769993446272,-1314.92961221,0.00016438,2]
[404239979,1769993446282,-1314.92961221,0.00016438,2]
[404239980,1769993446293,-1314.92961221,0.00016438,2]
[404239981,1769993446304,-1314.92961221,0.00016438,2]
[404239982,1769993446315,-1314.92961221,0.00016438,2]
[404239984,1769993446328,-1314.92961221,0.00016438,2]
[404239986,1769993446338,-1314.92961221,0.00016438,2]
[404239988,1769993446349,-1314.92961221,0.00016438,2]
[404239990,1769993446359,-1314.92961221,0.00016438,2]
[404239992,1769993446370,-1314.92961221,0.00016438,2]
[404239994,1769993446381,-1314.92961221,0.00016438,2]
[404239996,1769993446391,-1314.92961221,0.00016438,2]
[404239998,1769993446401,-1314.92961221,0.00016438,2]
[404240000,1769993446413,-2886.43085606,0.00016438,2]
[404240002,1769993446424,-2886.43085606,0.00016438,2]
[404240004,1769993446437,-2886.43085606,0.00016438,2]
[404240007,1769993446451,-2886.43085606,0.00016438,2]
[404240009,1769993446465,-2886.43085606,0.00016438,2]
[404240012,1769993446478,-2886.43085606,0.00016438,2]
[404240013,1769993446492,-2886.43085606,0.00016438,2]
[404240014,1769993446504,-2886.43085606,0.00016438,2]
[404240015,1769993446515,-2886.43085606,0.00016438,2]
[404240016,1769993446525,-2886.43085606,0.00016438,2]
[404240017,1769993446535,-2886.43085606,0.00016438,2]
[404240018,1769993446547,-2886.43085606,0.00016438,2]
[404240019,1769993446561,-1000.0,0.00016438,2]
[404240020,1769993446572,-151.0,0.00016438,2]
[404240021,1769993446583,-800.0,0.00016438,2]
[404240022,1769993446596,-151.0,0.00016438,2]
[404240023,1769993446607,-151.0,0.00016438,2]
[404240024,1769993446619,-151.0,0.00016438,2]
[404240025,1769993446632,-250.41399911,0.00016438,2]
[404240026,1769993446643,-151.0,0.00016438,2]
[404240027,1769993446655,-5888.0,0.00016454,2]
[404240028,1769993446665,-1727.09867743,0.00016464,2]
[404240029,1769993446676,-173.4,0.00016505,2]
[404240030,1769993446687,-379.52,0.00016513,2]
[404240031,1769993446698,-1000.0,0.00016515,2]
[404240032,1769993446708,-433.0,0.00016617,2]
[404240033,1769993446718,-17613.49425124,0.00016631,2]
[404240034,1769993446731,-16580.07916607,0.00016637,2]
[404240035,1769993446743,-166.66,0.00016668,2]
[404240036,1769993446753,-169.91,0.00016701,2]
[404240037,1769993446764,-1000.0,0.00016712,2]
[404240038,1769993446775,-159.01231928,0.00016732,2]
[404240039,1769993446787,-624.34738419,0.00016732,2]
[404240040,1769993446799,-151.0,0.00016762,2]
[404240041,1769993446811,-300.0,0.00016762,2]
[404240042,1769993446822,-300.0,0.00016762,2]
[404240043,1769993446837,-300.0,0.00016762,2]
[404240044,1769993446848,-151.0,0.00016763,2]
[404240045,1769993446860,-208.540031,0.00016763,2]
[404240046,1769993446871,-151.0,0.00016763,2]
[404240047,1769993446890,-208.540031,0.00016763,2]
[404240048,1769993446901,-208.540031,0.00016763,2]
[404240049,1769993446912,-208.540031,0.00016763,2]
[404240050,1769993446924,-151.0,0.00016763,2]
[404240051,1769993446935,-1000.0,0.00016763,2]
[404240052,1769993446946,-1000.0,0.00016763,2]
[404240053,1769993446957,-1000.89443715,0.00016763,2]
[404240054,1769993446968,-1000.0,0.00016763,2]
[404240055,1769993446978,-1000.0,0.00016763,2]
[404240056,1769993446989,-395.64865199,0.00016763,2]
[404240057,1769993447001,-1000.0,0.00016763,2]
[404240058,1769993447012,-1000.0,0.00016763,2]
[404240059,1769993447025,-1041.76717915,0.00016763,2]
[404240061,1769993447037,-200.48740188,0.00016763,2]
[404240063,1769993447048,-1000.0,0.00016763,2]
[404240066,1769993447059,-1000.0,0.00016763,2]
[404240068,1769993447070,-1001.72776972,0.00016763,2]
[404240070,1769993447083,-1000.0,0.00016763,2]
[404240072,1769993447094,-1000.0,0.00016763,2]
[404240074,1769993447104,-1000.0,0.00016763,2]
[404240076,1769993447114,-500.0,0.00016763,2]
[404240079,1769993447124,-516.40043536,0.00016763,2]
[404240081,1769993447136,-1000.77325853,0.00016763,2]
[404240083,1769993447146,-586.12648458,0.00016763,2]
[404240085,1769993447157,-1000.0,0.00016763,2]
[404240088,1769993447171,-1000.0,0.00016763,2]
[404240090,1769993447183,-1000.0,0.00016763,2]
[404240092,1769993447193,-1000.0,0.00016763,2]
[404240094,1769993447203,-1000.0,0.00016763,2]
[404240096,1769993447212,-1000.0,0.00016763,2]
[404240098,1769993447222,-1000.0,0.00016763,2]
[404240101,1769993447232,-185.32991376,0.00016763,2]
[404240103,1769993447242,-1000.0,0.00016763,2]
[404240105,1769993447253,-1000.0,0.00016763,2]
[404240107,1769993447264,-1000.0,0.00016763,2]
[404240109,1769993447275,-1000.0,0.00016763,2]
[404240112,1769993447286,-549.87463531,0.00016763,2]
[404240114,1769993447296,-290.71238371,0.00016763,2]
[404240116,1769993447306,-1003.45670612,0.00016763,2]
[404240118,1769993447316,-1000.0,0.00016763,2]
[404240120,1769993447327,-1000.0,0.00016763,2]
[404240122,1769993447337,-1000.0,0.00016763,2]
[404240124,1769993447348,-1000.0,0.00016763,2]
[404240126,1769993447358,-500.0,0.00016768,2]
[404240128,1769993447368,-5268.0,0.00016783,2]
[404240130,1769993447378,-5888.0,0.00016788,2]
[404240132,1769993447389,-2238.0,0.00016792,2]
[404240135,1769993447399,-151.0,0.00016795,2]
[404240137,1769993447409,-151.0,0.00016795,2]
[404240139,1769993447419,-151.0,0.00016795,2]
[404240141,1769993447430,-151.0,0.00016795,2]
[404240143,1769993447440,-151.0,0.00016795,2]
[404240145,1769993447451,-339.546304,0.00016795,2]
[404240147,1769993447461,-294.954782,0.00016795,2]
[404240150,1769993447472,-339.546304,0.00016795,2]
[404240152,1769993447482,-294.954782,0.00016795,2]
[404240154,1769993447492,-339.546304,0.00016795,2]
[404240156,1769993447503,-294.954782,0.00016795,2]
[404240158,1769993447514,-339.546304,0.00016795,2]
[404240160,1769993447525,-294.954782,0.00016795,2]
[404240163,1769993447535,-2238.0,0.00016795,2]
[404240165,1769993447545,-1410.0,0.00016796,2]
[404240167,1769993447557,-726.399,0.00016796,2]
[404240169,1769993447571,-1334.0,0.00016796,2]
[404240171,1769993447583,-3486.695,0.00016796,2]
[404240173,1769993447593,-1271.0,0.00016796,2]
[404240175,1769993447604,-160.174,0.00016796,2]
[404240177,1769993447615,-6577.0,0.00016796,2]
[404240180,1769993447626,-567.0,0.00016796,2]
[404240182,1769993447639,-3252.0,0.00016796,2]
[404240184,1769993447649,-242.15909246,0.0001681,2]
[404240186,1769993447659,-201.93286099,0.0001681,2]
[404240188,1769993447670,-1651.81367706,0.0001681,2]
[404240190,1769993447680,-2238.0,0.00016819,2]
[404240192,1769993447690,-2238.0,0.00016836,2]
[404240194,1769993447701,-2238.0,0.00016856,2]
[404240197,1769993447713,-2238.0,0.00016889,2]
[404240199,1769993447723,-152.15,0.00016904,2]
[404240201,1769993447734,-300.0,0.00016921,2]
[404240203,1769993447744,-2935.8,0.00016922,2]
[404240205,1769993447754,-212.12976534,0.00016958,2]
[404240207,1769993447764,-2238.0,0.0001697,2]
[404240209,1769993447776,-8227.8813769,0.00016986,2]
[404240211,1769993447787,-1000.0,0.00016986,2]
[404240214,1769993447798,-14935.2174612,0.00016988,2]
[404240216,1769993447808,-47361.2527035,0.00016988,2]
[404240218,1769993447819,-16189.5679795,0.00016988,2]
[404240220,1769993447830,-151.0,0.00016988,2]
[404240222,1769993447840,-151.0,0.00016988,2]
[404240224,1769993447851,-285.375228,0.00016988,2]
[404240226,1769993447861,-300.0,0.00016999,2]
[404240229,1769993447872,-300.0,0.00016999,2]
[404240231,1769993447884,-2158.9797641,0.00017,3]
[404240233,1769993447894,-156294.13787435,0.00017,2]
[404240235,1769993447905,-300.0,0.00017,2]
[404240237,1769993447915,-151.0,0.00017,2]
[404240239,1769993447925,-17613.49425124,0.00017018,2]
[404240241,1769993447936,-1024.2925243,0.00017018,2]
[404240244,1769993447946,-16580.07916607,0.00017025,2]
[404240246,1769993447958,-845.33,0.00017027,2]
[404240248,1769993447969,-2238.0,0.00017032,2]
[404240250,1769993447980,-2238.0,0.00017037,2]
[404240252,1769993447990,-2834.0,0.0001704,2]
[404240254,1769993448000,-169.971377,0.0001704,3]
[404240256,1769993448011,-623.44373254,0.0001705,2]
[404240258,1769993448021,-177.23,0.00017089,2]
[404240260,1769993448031,-150.00000569,0.00017092,2]
[404240263,1769993448041,-500.0,0.00017096,2]
[404240265,1769993448052,-879.51,0.00017103,2]
[404240267,1769993448062,-1000.0,0.00017112,2]
[404240269,1769993448072,-177.23,0.00017178,2]
[404240271,1769993448084,-1727.09867743,0.00017182,2]
[404240273,1769993448094,-299.68,0.00017195,2]
[404240276,1769993448106,-166.66,0.00017206,2]
[404240278,1769993448117,-173.4,0.0001725,2]
[404240280,1769993448128,-208.540031,0.0001726,2]
[404240282,1769993448138,-208.540031,0.0001726,2]
[404240284,1769993448148,-208.540031,0.0001726,2]
[404240287,1769993448159,-208.540031,0.0001726,2]
[404240289,1769993448169,-1000.0,0.0001726,2]
[404240291,1769993448178,-177.22925492,0.00017267,2]
[404240293,1769993448188,-166.66,0.00017304,2]
[404240295,1769993448199,-151.0,0.00017311,2]
[404240297,1769993448209,-151.0,0.00017311,2]
[404240300,1769993448223,-1126.57032524,0.00017311,2]
[404240302,1769993448234,-504.4683194,0.00017311,2]
[404240304,1769993448244,-1500.0,0.00017311,2]
[404240306,1769993448254,-1444.36096007,0.00017311,2]
[404240308,1769993448264,-1000.0,0.00017311,2]
[404240310,1769993448274,-1000.0,0.00017311,2]
[404240312,1769993448284,-621.80965915,0.00017311,2]
[404240314,1769993448295,-502.22158808,0.00017311,2]
[404240316,1769993448305,-500.9734639,0.00017311,2]
[404240318,1769993448315,-240.00336659,0.00017311,2]
[404240321,1769993448325,-1500.0,0.00017311,2]
[404240323,1769993448336,-502.91448222,0.00017311,2]
[404240325,1769993448346,-486.04386586,0.00017311,2]
[404240327,1769993448357,-1500.0,0.00017311,2]
[404240329,1769993448367,-1500.0,0.00017311,2]
[404240331,1769993448378,-500.7971561,0.00017311,2]
[404240334,1769993448389,-500.0,0.00017311,2]
[404240336,1769993448399,-987.88405873,0.00017311,2]
[404240338,1769993448410,-1000.0,0.00017311,2]
[404240340,1769993448422,-342.16695527,0.00017311,2]
[404240342,1769993448432,-1500.0,0.00017311,2]
[404240344,1769993448443,-644.9059017,0.00017311,2]
[404240347,1769993448455,-1275.89134138,0.00017311,2]
[404240349,1769993448466,-1500.0,0.00017311,2]
[404240351,1769993448476,-624.34738419,0.00017316,2]
[404240353,1769993448486,-500.0,0.00017316,2]
[404240355,1769993448496,-346.92554585,0.00017356,2]
[404240357,1769993448506,-747.8093786,0.00017357,2]
[404240359,1769993448518,-599.60298507,0.00017357,2]
[404240361,1769993448529,-251.11897888,0.00017358,2]
[404240363,1769993448538,-209.40437684,0.00017358,2]
[404240366,1769993448548,-1712.93078312,0.00017358,2]
[404240368,1769993448559,-2238.0,0.00017368,2]
[404240370,1769993448571,-151.0,0.00017368,2]
[404240372,1769993448582,-173.39081121,0.00017374,2]
[404240374,1769993448592,-5888.0,0.00017378,2]
[404240376,1769993448602,-2238.0,0.00017395,2]
[404240378,1769993448613,-17613.49425124,0.00017404,2]
[404240380,1769993448623,-1898.85844425,0.00017412,2]
[404240382,1769993448637,-16580.07916607,0.00017412,2]
[404240384,1769993448647,-773.08,0.00017417,2]
[404240387,1769993448657,-868.76,0.00017417,2]
[404240389,1769993448666,-267.0,0.00017426,2]
[404240391,1769993448676,-151.0,0.00017426,2]
[404240393,1769993448686,-150.0,0.00017426,2]
[404240395,1769993448696,-200.0,0.00017426,2]
[404240397,1769993448706,-228.485,0.00017426,2]
[404240399,1769993448716,-277.537,0.00017426,2]
[404240402,1769993448727,-196.043,0.00017426,2]
[404240404,1769993448737,-245.617,0.00017426,2]
[404240406,1769993448746,-158.605,0.00017426,2]
[404240408,1769993448761,-199.072,0.00017426,2]
[404240411,1769993448772,-150.0,0.00017426,2]
[404240413,1769993448782,-151.0,0.00017426,2]
[404240415,1769993448791,-151.214,0.00017426,2]
[404240417,1769993448801,-228.5505549,0.00017468,2]
[404240419,1769993448810,-1835.8884893,0.00017495,2]
[404240421,1769993448821,-3332.4974639,0.00017498,2]
[404240423,1769993448832,-10567.7239005,0.00017498,2]
[404240425,1769993448842,-3612.380896,0.00017498,2]
[404240447,1769993449103,-151.0,0.000175,2]
[404240451,1769993449132,-165.5,0.000175,2]
[404240454,1769993449145,-151.0,0.00017522,2]
[404240456,1769993449154,-151.0,0.00017522,2]
[404240458,1769993449163,-151.0,0.00017522,2]
[404240460,1769993449172,-339.546304,0.00017522,2]
[404240462,1769993449181,-339.546304,0.00017522,2]
[404240463,1769993449190,-294.954782,0.00017522,2]
[404240464,1769993449200,-294.954782,0.00017522,2]
[404240465,1769993449209,-339.546304,0.00017522,2]
[404240466,1769993449218,-339.546304,0.00017522,2]
[404240468,1769993449227,-294.954782,0.00017522,2]
[404240470,1769993449236,-294.954782,0.00017522,2]
[404240472,1769993449245,-1000.0,0.00017534,2]
[404240474,1769993449254,-5888.0,0.0001758,2]
[404240476,1769993449264,-2462.89428161,0.0001764,2]
[404240478,1769993449273,-2833.0,0.0001768,2]
[404240480,1769993449282,-772.54,0.00017691,2]
[404240482,1769993449291,-987.27,0.00017691,2]
[404240483,1769993449300,-1000.0,0.00017709,2]
[404240484,1769993449309,-5888.0,0.00017744,2]
[404240485,1769993449318,-159.01231928,0.00017778,2]
[404240486,1769993449327,-1000.0,0.00017793,2]
[404240487,1769993449338,-16580.07916607,0.000178,2]
[404240488,1769993449347,-1000.0,0.00017808,2]
[404240489,1769993449356,-25000.0,0.00017812,3]
[404240490,1769993449366,-3292.0,0.00017815,2]
[404240491,1769993449375,-25000.0,0.00017821,3]
[404240492,1769993449384,-25000.0,0.0001783,3]
[404240493,1769993449393,-25000.0,0.00017838,3]
[404240494,1769993449402,-151.0,0.00017847,2]
[404240495,1769993449411,-151.0,0.00017847,2]
[404240496,1769993449421,-25000.0,0.00017847,3]
[404240497,1769993449431,-5888.0,0.0001785,2]
[404240498,1769993449440,-151.0,0.00017851,2]
[404240499,1769993449450,-151.0,0.00017851,2]
[404240500,1769993449459,-151.0,0.00017851,2]
[404240501,1769993449469,-151.0,0.00017851,2]
[404240502,1769993449478,-151.0,0.00017851,2]
[404240503,1769993449487,-165.75340433,0.00017851,2]
[404240504,1769993449497,-151.0,0.00017851,2]
[404240505,1769993449506,-151.0,0.00017851,2]
[404240506,1769993449515,-151.0,0.00017851,2]
[404240507,1769993449525,-151.0,0.00017851,2]
[404240508,1769993449534,-151.0,0.00017851,2]
[404240509,1769993449544,-151.0,0.00017851,2]
[404240510,1769993449554,-151.0,0.00017851,2]
[404240511,1769993449565,-151.0,0.00017851,2]
[404240512,1769993449575,-151.0,0.00017851,2]
[404240513,1769993449584,-151.0,0.00017851,2]
[404240514,1769993449594,-151.0,0.00017851,2]
[404240515,1769993449603,-151.0,0.00017851,2]
[404240516,1769993449611,-151.0,0.00017851,2]
[404240517,1769993449621,-151.0,0.00017851,2]
[404240518,1769993449630,-151.0,0.00017851,2]
[404240519,1769993449638,-151.0,0.00017851,2]
[404240520,1769993449647,-151.0,0.00017851,2]
[404240521,1769993449661,-151.0,0.00017851,2]
[404240522,1769993449670,-151.0,0.00017851,2]
[404240523,1769993449679,-151.0,0.00017851,2]
[404240524,1769993449690,-151.0,0.00017851,2]
[404240525,1769993449700,-151.0,0.00017851,2]
[404240526,1769993449710,-25000.0,0.00017856,3]
[404240527,1769993449721,-501.49582385,0.00017859,2]
[404240528,1769993449731,-500.0,0.00017859,2]
[404240529,1769993449741,-1000.0,0.00017859,2]
[404240530,1769993449751,-500.0,0.00017859,2]
[404240531,1769993449761,-500.0,0.00017864,2]
[404240532,1769993449773,-25000.0,0.00017865,3]
[404240533,1769993449783,-300.0,0.00017873,2]
[404240534,1769993449794,-301.83228006,0.00017873,2]
[404240535,1769993449804,-25000.0,0.00017874,3]
[404240536,1769993449816,-25000.0,0.00017874,3]
[404240537,1769993449827,-5888.0,0.00017875,2]
[404240538,1769993449838,-300.0,0.00017881,2]
[404240539,1769993449851,-208.540031,0.00017882,2]
[404240540,1769993449860,-208.540031,0.00017882,2]
[404240541,1769993449870,-208.540031,0.00017882,2]
[404240542,1769993449880,-208.540031,0.00017882,2]
[404240543,1769993449891,-25000.0,0.00017882,3]
[404240544,1769993449900,-25000.0,0.00017882,3]
[404240545,1769993449910,-151.0,0.0001789,2]
[404240546,1769993449919,-300.0,0.0001789,2]
[404240547,1769993449931,-151.0,0.00017891,2]
[404240548,1769993449943,-151.0,0.00017891,2]
[404240549,1769993449954,-151.0,0.00017891,2]
[404240550,1769993449964,-151.0,0.00017891,2]
[404240551,1769993449974,-339.546304,0.00017891,2]
[404240552,1769993449983,-339.546304,0.00017891,2]
[404240553,1769993449992,-294.954782,0.00017891,2]
[404240554,1769993450002,-294.954782,0.00017891,2]
[404240555,1769993450012,-339.546304,0.00017891,2]
[404240556,1769993450022,-339.546304,0.00017891,2]
[404240557,1769993450031,-294.954782,0.00017891,2]
[404240558,1769993450044,-294.954782,0.00017891,2]
[404240559,1769993450053,-25000.0,0.00017891,3]
[404240560,1769993450064,-25000.0,0.00017891,3]
[404240561,1769993450074,-25000.0,0.00017891,3]
[404240562,1769993450084,-300.0,0.00017899,2]
[404240563,1769993450093,-25000.0,0.000179,3]
[404240564,1769993450103,-25000.0,0.000179,3]
[404240565,1769993450112,-24163.59800953,0.000179,3]
[404240566,1769993450122,-25000.0,0.000179,3]
[404240567,1769993450132,-25000.0,0.000179,3]
[404240568,1769993450142,-623.44373254,0.000179,2]
[404240569,1769993450151,-151.0,0.000179,2]
[404240570,1769993450161,-151.0,0.000179,2]
[404240571,1769993450171,-481.89509141,0.000179,2]
[404240572,1769993450181,-624.34738419,0.000179,2]
[404240573,1769993450191,-151.0,0.000179,2]
[404240574,1769993450200,-151.0,0.000179,2]
[404240575,1769993450212,-151.95874796,0.000179,2]
[404240576,1769993450223,-237.77321942,0.000179,2]
[404240577,1769993450234,-4350.89113284,0.000179,2]
[404240578,1769993450249,-1727.09867743,0.000179,2]
[404240579,1769993450259,-260.4103811,0.00017906,2]
[404240580,1769993450270,-217.15233878,0.00017906,2]
[404240581,1769993450281,-1776.30922209,0.00017906,2]
[404240582,1769993450291,-331.0,0.00017918,2]
[404240583,1769993450302,-166.66,0.00017939,2]
[404240584,1769993450311,-514.87521188,0.00017971,2]
[404240585,1769993450321,-619.58731201,0.0001799,2]
[404240586,1769993450332,-5888.0,0.00017994,2]
[404240587,1769993450341,-150.0,0.00017999,2]
[404240588,1769993450351,-153.89565007,0.00017999,2]
[404240589,1769993450361,-300.0,0.00017999,2]
[404240590,1769993450371,-3920488.33005731,0.00018,2]
[404240591,1769993450380,-7500.21523255,0.00018,2]
[404240592,1769993450390,-910457.19375958,0.00018,2]
[404240593,1769993450644,-500.0,0.00014301,2]
[404240594,1769993450654,-500.0,0.00014575,2]
[404240595,1769993450663,-66548.78481729,0.00018,2]
[404240596,1769993450676,-1055086.99711407,0.00018,2]
[404240597,1769993450715,-414.4477084,0.00018,2]
[404240598,1769993450905,-677.9823,0.00015714,2]
[404240599,1769993450937,-12.46678767,0.00015714,2]
[404240600,1769993450948,-37.06919556,0.00015714,2]
[404240601,1769993450958,-151.0,0.00015749,2]
[404240602,1769993450967,-2547.86538041,0.00017791,2]
[404240603,1769993450988,-15065.62887083,0.00017791,2]
[404240604,1769993450998,-18615.8052461,0.00018,2]
[404240605,1769993451010,-822.78396786,0.00018,2]
[404240606,1769993451023,-1051.62888184,0.00018,2]
[404240607,1769993451034,-1260.00000002,0.00018,2]
[404240608,1769993451048,-547.86314549,0.00018,2]
[404240621,1769994454661,561.03,0.00012849,2]
[404240622,1769994463664,561.03,0.00012849,2]
[404240623,1769994472032,420.77,0.00012849,2]
[404240624,1769994484311,350.64,0.00012849,2]
[404240625,1769994503932,175.32,0.00021,30]
[404240626,1769994531672,175.0,0.00012849,2]
[404240640,1769994631384,-500.0,0.00013058,2]
[404240641,1769994631394,-189.34894309,0.00013202,2]
[404240662,1769994637489,-658.47843359,0.00013202,2]
[404240663,1769994637500,-152.17262332,0.00013202,2]
[404240664,1769994637509,-1586.01,0.00013296,2]
[404240665,1769994637519,-300.0,0.00013324,2]
[404240666,1769994637528,-1200.0,0.00013324,2]
[404240667,1769994637538,-699.45390425,0.00013325,2]
[404240668,1769994637547,-1845.86991974,0.00013325,2]
[404240669,1769994637557,-3256.33333638,0.00013325,2]
[404240670,1769994637566,-4431.38,0.00013384,2]
[404240671,1769994637575,-266.82,0.00013425,2]
[404240672,1769994637585,-169.316,0.00013638,2]
[404240673,1769994637594,-2002.743,0.00013638,2]
[404240674,1769994637603,-862.53,0.00013699,2]
[404240675,1769994637612,-15852.14482619,0.00013773,2]
[404240676,1769994637624,-2045.0271,0.00013816,2]
[404240677,1769994637634,-150.0,0.00013872,2]
[404240678,1769994637643,-988.64850143,0.00013873,2]
[404240679,1769994637652,-3827.76,0.00013873,2]
[404240680,1769994637662,-6783.87,0.00013873,2]
[404240681,1769994637671,-233.65,0.00013873,2]
[404240682,1769994637680,-9999.99,0.00013873,2]
[404240683,1769994637690,-150.99,0.00013873,2]
[404240684,1769994637699,-98964.19301091,0.00013873,2]
[404240685,1769994637711,-2720.59698909,0.00013873,2]
[404240687,1769994637720,-566.35,0.00013873,2]
[404240689,1769994637730,-299.99,0.00013873,2]
[404240691,1769994637740,-978.38,0.00013873,2]
[404240693,1769994637749,-9999.99,0.00013873,2]
[404240695,1769994637759,-999.99,0.00013873,2]
[404240698,1769994637779,-9999.99,0.00013873,2]
[404240700,1769994637790,-9999.99,0.00013873,2]
[404240702,1769994637799,-1201.23,0.00013873,2]
[404240704,1769994637808,-298.36,0.00013873,2]
[404240707,1769994637818,-1501.41,0.00013888,2]
[404240708,1769994637827,-232.68889938,0.00013888,2]
[404240711,1769994637836,-2237.0,0.0001389,2]
[404240713,1769994637846,-619.58731201,0.00013906,2]
[404240715,1769994637855,-15484.01200688,0.00013906,2]
[404240716,1769994637865,-746.63124322,0.00013906,2]
[404240718,1769994637877,-237.77321944,0.00013906,2]
[404240720,1769994637887,-151.95874798,0.00013906,2]
[404240722,1769994637899,-1727.09867745,0.00013906,2]
[404240724,1769994637909,-188.74513068,0.00013906,2]
[404240726,1769994637919,-481.89509143,0.00013906,2]
[404240728,1769994637928,-4350.89113284,0.00013906,2]
[404240730,1769994637939,-1842.15629165,0.00013906,2]
[404240732,1769994637948,-200.0,0.00013908,2]
[404240734,1769994637957,-500.0,0.00013908,2]
[404240736,1769994637967,-151.0,0.00013908,2]
[404240738,1769994637978,-151.0,0.00013908,2]
[404240740,1769994637987,-500.0,0.00013908,2]
[404240742,1769994637996,-151.0,0.00013908,2]
[404240744,1769994638006,-500.0,0.00013908,2]
[404240746,1769994638015,-151.0,0.00013908,2]
[404240748,1769994638024,-500.0,0.00013908,2]
[404240750,1769994638034,-151.0,0.00013908,2]
[404240752,1769994638043,-500.0,0.00013908,2]
[404240754,1769994638053,-151.0,0.00013908,2]
[404240756,1769994638062,-500.0,0.00013908,2]
[404240758,1769994638072,-151.0,0.00013908,2]
[404240760,1769994638082,-500.0,0.00013908,2]
[404240762,1769994638091,-151.0,0.00013908,2]
[404240764,1769994638101,-500.0,0.00013908,2]
[404240766,1769994638110,-151.0,0.00013908,2]
[404240768,1769994638121,-590.18945618,0.00013908,2]
[404240770,1769994638132,-500.0,0.00013908,2]
[404240772,1769994638141,-151.0,0.00013908,2]
[404240774,1769994638151,-500.0,0.00013908,2]
[404240776,1769994638160,-151.0,0.00013908,2]
[404240777,1769994638170,-500.0,0.00013908,2]
[404240778,1769994638179,-500.0,0.00013908,2]
[404240779,1769994638188,-200.0,0.00013908,2]
[404240780,1769994638197,-500.0,0.00013908,2]
[404240781,1769994638207,-500.0,0.00013908,2]
[404240782,1769994638216,-500.0,0.00013908,2]
[404240783,1769994638225,-500.0,0.00013908,2]
[404240784,1769994638234,-500.0,0.00013908,2]
[404240785,1769994638243,-500.0,0.00013908,2]
[404240786,1769994638253,-500.0,0.00013908,2]
[404240787,1769994638263,-500.0,0.00013908,2]
[404240788,1769994638273,-500.0,0.00013908,2]
[404240789,1769994638283,-500.0,0.00013908,2]
[404240790,1769994638292,-500.0,0.00013908,2]
[404240791,1769994638302,-151.0,0.00013908,2]
[404240792,1769994638311,-151.0,0.00013908,2]
[404240793,1769994638322,-151.0,0.00013908,2]
[404240794,1769994638335,-151.0,0.00013908,2]
[404240795,1769994638344,-151.0,0.00013908,2]
[404240796,1769994638354,-151.0,0.00013908,2]
[404240797,1769994638364,-151.0,0.00013908,2]
[404240798,1769994638374,-151.0,0.00013908,2]
[404240799,1769994638383,-151.0,0.00013908,2]
[404240800,1769994638393,-151.0,0.00013908,2]
[404240801,1769994638402,-151.0,0.00013908,2]
[404240802,1769994638411,-151.0,0.00013908,2]
[404240803,1769994638421,-151.0,0.00013908,2]
[404240804,1769994638431,-151.0,0.00013908,2]
[404240805,1769994638440,-151.0,0.00013908,2]
[404240806,1769994638449,-151.0,0.00013908,2]